fUST/lending_fUST_20240605
["ID","MTS","AMOUNT","RATE_DAILY","PERIOD"]
[328594397,1717587032368,-726.27965151,0.00018897,2]
[328594398,1717587032380,-545.87563572,0.00018897,2]
[328594451,1717587040125,-926.80712558,0.00016433,2]
[328594453,1717587040135,-7746.14526442,0.00018897,2]
[328594468,1717587042911,-6730.03741227,0.00018897,2]
[328594469,1717587042924,-962.99791613,0.00018897,2]
[328594470,1717587042936,-25375.23883222,0.00018897,2]
[328594743,1717587046175,-4154.7911464,0.00018897,2]
[328594752,1717587046387,-11580.97009831,0.00018897,2]
[328594754,1717587046397,-302.73262901,0.00018897,2]
[328594756,1717587046406,-19295.71547601,0.00018897,2]
[328594759,1717587046416,-1105.02235115,0.00018898,2]
[328594763,1717587046428,-9375.37294838,0.00018898,2]
[328594766,1717587046438,-800.09218293,0.000189,2]
[328594769,1717587046447,-162.96737404,0.00019169,2]
[328594772,1717587046456,-12461.34789138,0.00019171,2]
[328594775,1717587046466,-695.94006747,0.00019174,2]
[328594777,1717587046475,-157.5170374,0.00019176,2]
[328594779,1717587046485,-1102.14153259,0.00019177,2]
[328594781,1717587046495,-283.37338238,0.00019177,2]
[328594783,1717587046504,-500.0,0.00019178,2]
[328594785,1717587046514,-313.40039369,0.00019178,2]
[328594787,1717587046524,-500.0,0.00019178,2]
[328594789,1717587046536,-500.0,0.00019178,2]
[328594791,1717587046546,-500.0,0.00019178,2]
[328594793,1717587046555,-500.0,0.00019178,2]
[328594795,1717587046565,-500.0,0.00019178,2]
[328594797,1717587046574,-500.0,0.00019178,2]
[328594799,1717587046584,-500.0,0.00019178,2]
[328594801,1717587046593,-500.0,0.00019178,2]
[328594803,1717587046602,-500.0,0.00019178,2]
[328594805,1717587046612,-500.0,0.00019178,2]
[328594807,1717587046621,-500.0,0.00019178,2]
[328594809,1717587046630,-500.0,0.00019178,2]
[328594811,1717587046639,-500.0,0.00019178,2]
[328594813,1717587046649,-173.80669309,0.00019178,2]
[328594815,1717587046658,-500.0,0.00019178,2]
[328594817,1717587046667,-500.0,0.00019178,2]
[328594819,1717587046677,-500.0,0.00019178,2]
[328594821,1717587046686,-500.0,0.00019178,2]
[328594823,1717587046695,-601.62814935,0.00019178,2]
[328594825,1717587046705,-500.0,0.00019178,2]
[328594827,1717587046714,-198.94320679,0.00019178,2]
[328594829,1717587046723,-349.96855495,0.00019178,2]
[328594831,1717587046732,-500.0,0.00019178,2]
[328594833,1717587046742,-500.0,0.00019178,2]
[328594835,1717587046751,-500.0,0.00019178,2]
[328594837,1717587046760,-500.0,0.00019178,2]
[328594839,1717587046770,-500.0,0.00019178,2]
[328594841,1717587046779,-500.0,0.00019178,2]
[328594843,1717587046790,-500.0,0.00019178,2]
[328594844,1717587046800,-500.0,0.00019178,2]
[328594846,1717587046809,-280.3756478,0.00019178,2]
[328594848,1717587046819,-500.0,0.00019178,2]
[328594850,1717587046829,-440.57140809,0.00019178,2]
[328594878,1717587047100,-59.42859191,0.00019178,2]
[328594880,1717587047110,-500.0,0.00019178,2]
[328594882,1717587047118,-367.7736993,0.00019178,2]
[328594885,1717587047142,-132.2263007,0.00019178,2]
[328594887,1717587047151,-500.0,0.00019178,2]
[328594889,1717587047161,-500.0,0.00019178,2]
[328594891,1717587047171,-500.0,0.00019178,2]
[328594893,1717587047180,-500.0,0.00019178,2]
[328594895,1717587047190,-500.0,0.00019178,2]
[328594897,1717587047200,-374.87934911,0.00019178,2]
[328594899,1717587047210,-500.0,0.00019178,2]
[328594901,1717587047220,-500.0,0.00019178,2]
[328594903,1717587047230,-500.0,0.00019178,2]
[328594905,1717587047239,-500.0,0.00019178,2]
[328594907,1717587047249,-500.0,0.00019178,2]
[328594909,1717587047259,-500.0,0.00019178,2]
[328594911,1717587047269,-500.0,0.00019178,2]
[328594913,1717587047278,-169.644615,0.00019178,2]
[328594915,1717587047289,-166.623638,0.00019178,2]
[328594917,1717587047299,-1790.02373372,0.00019647,2]
[328594919,1717587047309,-5483.66474397,0.0001965,7]
[328594921,1717587047318,-702.76084127,0.00019652,2]
[328594923,1717587047328,-461.8019537,0.0002,2]
[328594925,1717587047338,-12839.75194096,0.0002,2]
[328594927,1717587047348,-435.0,0.0002,2]
[328594929,1717587047358,-1354.21950592,0.00020818,2]
[328594931,1717587047367,-523.95127729,0.00020819,2]
[328594933,1717587047378,-197.3,0.00020863,3]
[328594935,1717587047388,-702.76084127,0.00021464,2]
[328594937,1717587047398,-197.3,0.00021556,5]
[328594939,1717587047409,-196.45993721,0.0002181,2]
[328594941,1717587047419,-3000.0,0.00021812,2]
[328594943,1717587047429,-3000.0,0.00021812,2]
[328594945,1717587047439,-1719.65675883,0.00021812,2]
[328594947,1717587047448,-88888.0,0.00021817,3]
[328594949,1717587047458,-2000.0,0.00021817,2]
[328594951,1717587047468,-150.0,0.0002191,2]
[328594953,1717587047477,-497.0,0.0002191,2]
[328594955,1717587047487,-272.23220278,0.00021915,2]
[328594957,1717587047497,-1420.12402396,0.00021915,2]
[328594959,1717587047506,-155.38006083,0.00021915,2]
[328594961,1717587047516,-238.83527109,0.00021915,2]
[328594963,1717587047526,-155.12608804,0.00021915,2]
[328594965,1717587047536,-411.17318221,0.00021915,2]
[328594967,1717587047546,-2119.42389306,0.00021915,2]
[328594969,1717587047555,-8345.90424792,0.00021915,2]
[328594971,1717587047565,-850.80134715,0.00021915,7]
[328594973,1717587047574,-5326.37628609,0.00021915,2]
[328594975,1717587047583,-190.31268381,0.00021915,2]
[328594977,1717587047592,-1441.26646871,0.00021915,2]
[328594978,1717587047602,-4162.94729687,0.00021915,2]
[328594980,1717587047611,-2065.31124022,0.00021915,2]
[328594982,1717587047621,-53161.52408336,0.00021916,2]
[328594984,1717587047630,-7251.61093568,0.00021916,2]
[328594986,1717587047639,-549.05870408,0.00021917,2]
[328594988,1717587047648,-500.0,0.00021917,2]
[328594990,1717587047657,-500.0,0.00021917,2]
[328594992,1717587047666,-500.0,0.00021917,2]
[328594994,1717587047677,-696.69,0.00021917,2]
[328594996,1717587047687,-500.0,0.00021917,2]
[328594998,1717587047698,-500.0,0.00021917,2]
[328595000,1717587047708,-500.0,0.00021917,2]
[328595002,1717587047718,-500.0,0.00021917,2]
[328595004,1717587047727,-472.80763087,0.00021917,2]
[328595006,1717587047737,-500.0,0.00021917,2]
[328595008,1717587047747,-645.21876079,0.00021917,2]
[328595010,1717587047757,-500.0,0.00021917,2]
[328595012,1717587047766,-500.0,0.00021917,2]
[328595014,1717587047775,-500.0,0.00021917,2]
[328595016,1717587047784,-513.76237331,0.00021917,2]
[328595018,1717587047794,-500.0,0.00021917,2]
[328595020,1717587047803,-500.0,0.00021917,2]
[328595022,1717587047813,-500.0,0.00021917,2]
[328595024,1717587047825,-500.0,0.00021917,2]
[328595026,1717587047835,-500.0,0.00021917,2]
[328595028,1717587047848,-500.0,0.00021917,2]
[328595030,1717587047857,-500.0,0.00021917,2]
[328595032,1717587047866,-500.0,0.00021917,2]
[328595034,1717587047875,-500.0,0.00021917,2]
[328595036,1717587047885,-500.0,0.00021917,2]
[328595038,1717587047895,-500.0,0.00021917,2]
[328595040,1717587047904,-500.0,0.00021917,2]
[328595042,1717587047914,-500.0,0.00021917,2]
[328595044,1717587047924,-598.95,0.00021917,2]
[328595045,1717587047933,-500.0,0.00021917,2]
[328595047,1717587047944,-174.6205898,0.00021917,2]
[328595049,1717587047953,-607.91,0.00021917,2]
[328595051,1717587047963,-500.0,0.00021917,2]
[328595053,1717587047973,-642.44,0.00021917,2]
[328595055,1717587047982,-573.81515532,0.00021917,2]
[328595057,1717587047991,-500.0,0.00021917,2]
[328595059,1717587048001,-500.0,0.00021917,2]
[328595061,1717587048011,-500.0,0.00021917,2]
[328595064,1717587048021,-158.96697756,0.00021917,2]
[328595066,1717587048031,-775.93,0.00021917,2]
[328595067,1717587048040,-500.0,0.00021917,2]
[328595069,1717587048049,-500.0,0.00021917,2]
[328595071,1717587048059,-500.0,0.00021917,2]
[328595073,1717587048069,-500.0,0.00021917,2]
[328595076,1717587048079,-500.0,0.00021917,2]
[328595077,1717587048088,-500.0,0.00021917,2]
[328595079,1717587048098,-207.95745383,0.00021917,2]
[328595081,1717587048108,-516.17389832,0.00021917,2]
[328595084,1717587048118,-500.0,0.00021917,2]
[328595086,1717587048128,-500.0,0.00021917,2]
[328595087,1717587048137,-500.0,0.00021917,2]
[328595090,1717587048147,-500.0,0.00021917,2]
[328595091,1717587048157,-513.77,0.00021917,2]
[328595093,1717587048166,-500.0,0.00021917,2]
[328595094,1717587048176,-636.66,0.00021917,2]
[328595096,1717587048186,-500.0,0.00021917,2]
[328595098,1717587048195,-500.0,0.00021917,2]
[328595100,1717587048205,-634.59,0.00021917,2]
[328595102,1717587048215,-500.0,0.00021917,2]
[328595104,1717587048224,-500.0,0.00021917,2]
[328595106,1717587048234,-605.1,0.00021917,2]
[328595108,1717587048244,-500.0,0.00021917,2]
[328595110,1717587048253,-511.27999159,0.00021917,2]
[328595112,1717587048262,-500.0,0.00021917,2]
[328595114,1717587048272,-500.0,0.00021917,2]
[328595115,1717587048281,-500.0,0.00021917,2]
[328595117,1717587048291,-500.0,0.00021917,2]
[328595119,1717587048300,-500.0,0.00021917,2]
[328595121,1717587048310,-500.0,0.00021917,2]
[328595123,1717587048320,-523.95,0.00021917,2]
[328595125,1717587048330,-500.0,0.00021917,2]
[328595127,1717587048340,-500.0,0.00021917,2]
[328595129,1717587048348,-500.0,0.00021917,2]
[328595131,1717587048357,-983.57,0.00021917,2]
[328595133,1717587048367,-500.0,0.00021917,2]
[328595135,1717587048377,-500.0,0.00021917,2]
[328595137,1717587048386,-396.55105331,0.00021917,2]
[328595139,1717587048396,-500.0,0.00021917,2]
[328595141,1717587048406,-500.0,0.00021917,2]
[328595142,1717587048415,-500.0,0.00021917,2]
[328595143,1717587048425,-500.0,0.00021917,2]
[328595144,1717587048435,-500.0,0.00021917,2]
[328595145,1717587048444,-500.0,0.00021917,2]
[328595146,1717587048454,-505.30231145,0.00021917,2]
[328595147,1717587048463,-500.0,0.00021917,2]
[328595148,1717587048472,-500.0,0.00021917,2]
[328595149,1717587048482,-500.0,0.00021917,2]
[328595150,1717587048492,-500.0,0.00021917,2]
[328595151,1717587048502,-576.87,0.00021917,2]
[328595152,1717587048511,-500.0,0.00021917,2]
[328595153,1717587048521,-500.0,0.00021917,2]
[328595154,1717587048530,-500.0,0.00021917,2]
[328595155,1717587048541,-500.0,0.00021917,2]
[328595156,1717587048552,-500.0,0.00021917,2]
[328595157,1717587048562,-500.0,0.00021917,2]
[328595158,1717587048572,-500.0,0.00021917,2]
[328595159,1717587048582,-500.0,0.00021917,2]
[328595160,1717587048591,-361.89572443,0.00021917,2]
[328595161,1717587048601,-1033.02,0.00021917,2]
[328595162,1717587048611,-500.0,0.00021917,2]
[328595163,1717587048620,-500.0,0.00021917,2]
[328595164,1717587048630,-504.47075725,0.00021917,2]
[328595165,1717587048640,-500.0,0.00021917,2]
[328595166,1717587048649,-564.05,0.00021917,2]
[328595167,1717587048659,-502.71669587,0.00021917,2]
[328595168,1717587048668,-505.55553188,0.00021917,2]
[328595169,1717587048678,-504.84859939,0.00021917,2]
[328595170,1717587048687,-505.67532843,0.00021917,2]
[328595171,1717587048697,-551.99,0.00021917,2]
[328595172,1717587048706,-503.78231111,0.00021917,2]
[328595173,1717587048716,-500.0,0.00021917,2]
[328595174,1717587048726,-502.80368054,0.00021917,2]
[328595175,1717587048736,-525.71785913,0.00021917,2]
[328595176,1717587048745,-501.93711133,0.00021917,2]
[328595177,1717587048755,-500.0,0.00021917,2]
[328595178,1717587048765,-500.0,0.00021917,2]
[328595179,1717587048774,-501.9424382,0.00021917,2]
[328595180,1717587048785,-507.63809335,0.00021917,2]
[328595181,1717587048796,-500.0,0.00021917,2]
[328595182,1717587048805,-506.87354775,0.00021917,2]
[328595183,1717587048815,-500.0,0.00021917,2]
[328595185,1717587048824,-606.13,0.00021917,2]
[328595186,1717587048833,-506.06833664,0.00021917,2]
[328595187,1717587048847,-500.0,0.00021917,2]
[328595188,1717587048856,-562.89824687,0.00021917,2]
[328595189,1717587048865,-533.84677116,0.00021917,2]
[328595190,1717587048875,-565.44,0.00021917,2]
[328595191,1717587048885,-500.0,0.00021917,2]
[328595192,1717587049015,-557.38,0.00021917,2]
[328595193,1717587049025,-500.0,0.00021917,2]
[328595194,1717587049035,-502.79096712,0.00021917,2]
[328595195,1717587049045,-500.0,0.00021917,2]
[328595196,1717587049055,-524.73856155,0.00021917,2]
[328595197,1717587049064,-635.13,0.00021917,2]
[328595198,1717587049074,-500.0,0.00021917,2]
[328595199,1717587049083,-500.0,0.00021917,2]
[328595200,1717587049093,-500.0,0.00021917,2]
[328595201,1717587049103,-503.97526629,0.00021917,2]
[328595202,1717587049113,-500.0,0.00021917,2]
[328595203,1717587049123,-518.04824643,0.00021917,2]
[328595204,1717587049134,-500.0,0.00021917,2]
[328595205,1717587049143,-500.0,0.00021917,2]
[328595206,1717587049153,-988.15,0.00021917,2]
[328595207,1717587049163,-509.03449173,0.00021917,2]
[328595208,1717587049172,-500.0,0.00021917,2]
[328595209,1717587049182,-402.29209106,0.00021917,2]
[328595210,1717587049192,-500.0,0.00021917,2]
[328595211,1717587049201,-164.87121644,0.00021917,2]
[328595212,1717587049210,-500.0,0.00021917,2]
[328595213,1717587049219,-500.0,0.00021917,2]
[328595214,1717587049228,-500.0,0.00021917,2]
[328595215,1717587049238,-619.49,0.00021917,2]
[328595216,1717587049247,-394.67543924,0.00021917,2]
[328595217,1717587049257,-500.0,0.00021917,2]
[328595218,1717587049266,-500.0,0.00021917,2]
[328595219,1717587049275,-429.59078279,0.00021917,2]
[328595220,1717587049285,-500.0,0.00021917,2]
[328595221,1717587049293,-500.0,0.00021917,2]
[328595222,1717587049302,-500.0,0.00021917,2]
[328595223,1717587049312,-500.0,0.00021917,2]
[328595224,1717587049321,-256.74183475,0.00021917,2]
[328595225,1717587049330,-500.0,0.00021917,2]
[328595226,1717587049340,-500.68159711,0.00021917,2]
[328595227,1717587049349,-759.07,0.00021917,2]
[328595228,1717587049359,-548.43,0.00021917,2]
[328595229,1717587049368,-500.0,0.00021917,2]
[328595230,1717587049377,-500.0,0.00021917,2]
[328595231,1717587049387,-1121.33,0.00021917,2]
[328595232,1717587049396,-1000.0,0.00021917,2]
[328595233,1717587049405,-523.37022865,0.00021917,2]
[328595234,1717587049415,-500.0,0.00021917,2]
[328595235,1717587049424,-500.0,0.00021917,2]
[328595236,1717587049434,-506.3966456,0.00021917,2]
[328595237,1717587049443,-501.27053568,0.00021917,2]
[328595238,1717587049453,-505.1963531,0.00021917,2]
[328595239,1717587049462,-380.21927666,0.00021917,2]
[328595240,1717587049472,-316.03613428,0.00021917,2]
[328595241,1717587049482,-504.74157633,0.00021917,2]
[328595242,1717587049491,-253.86330479,0.00021917,2]
[328595243,1717587049500,-157.618676,0.00021917,2]
[328595244,1717587049509,-504.96090253,0.00021917,2]
[328595245,1717587049518,-504.91861196,0.00021917,2]
[328595246,1717587049528,-500.0,0.00021917,2]
[328595247,1717587049538,-500.0,0.00021917,2]
[328595248,1717587049547,-502.96631366,0.00021917,2]
[328595249,1717587049557,-502.97090191,0.00021917,2]
[328595250,1717587049566,-589.9081972,0.00021917,2]
[328595251,1717587049576,-503.87863747,0.00021917,2]
[328595252,1717587049586,-500.0,0.00021917,2]
[328595253,1717587049595,-500.5432144,0.00021917,2]
[328595254,1717587049604,-500.0,0.00021917,2]
[328595255,1717587049613,-500.0,0.00021917,2]
[328595256,1717587049622,-223.40910143,0.00021917,2]
[328595257,1717587049631,-500.0,0.00021917,2]
[328595258,1717587049641,-500.0,0.00021917,2]
[328595259,1717587049650,-500.0,0.00021917,2]
[328595260,1717587049659,-500.0,0.00021917,2]
[328595261,1717587049669,-500.0,0.00021917,2]
[328595262,1717587049678,-344.91788166,0.00021917,2]
[328595263,1717587049687,-507.47828853,0.00021917,2]
[328595264,1717587049696,-509.80694163,0.00021917,2]
[328595265,1717587049706,-500.0,0.00021917,2]
[328595266,1717587049716,-415.61247146,0.00021917,2]
[328595267,1717587049726,-515.60786556,0.00021917,2]
[328595268,1717587049735,-521.35640827,0.00021917,2]
[328595269,1717587049744,-500.0,0.00021917,2]
[328595270,1717587049754,-500.0,0.00021917,2]
[328595271,1717587049763,-1171.2,0.00021917,2]
[328595272,1717587049773,-500.0,0.00021917,2]
[328595273,1717587049782,-536.43776564,0.00021917,2]
[328595274,1717587049791,-500.0,0.00021917,2]
[328595275,1717587049800,-500.0,0.00021917,2]
[328595276,1717587049810,-256.76552277,0.00021917,2]
[328595277,1717587049819,-500.0,0.00021917,2]
[328595278,1717587049829,-501.23250287,0.00021917,2]
[328595279,1717587049843,-500.0,0.00021917,2]
[328595280,1717587049852,-500.0,0.00021917,2]
[328595281,1717587049862,-500.0,0.00021917,2]
[328595282,1717587049872,-395.06421142,0.00021917,2]
[328595283,1717587049883,-500.0,0.00021917,2]
[328595284,1717587049893,-500.0,0.00021917,2]
[328595285,1717587049903,-500.0,0.00021917,2]
[328595286,1717587049912,-500.0,0.00021917,2]
[328595287,1717587049923,-500.0,0.00021917,2]
[328595288,1717587049932,-500.0,0.00021917,2]
[328595289,1717587049943,-500.0,0.00021917,2]
[328595290,1717587049952,-500.0,0.00021917,2]
[328595291,1717587049962,-512.14045453,0.00021917,2]
[328595292,1717587049971,-600.88,0.00021917,2]
[328595293,1717587049981,-562.4,0.00021917,2]
[328595294,1717587049990,-500.0,0.00021917,2]
[328595295,1717587049999,-500.0,0.00021917,2]
[328595296,1717587050010,-500.0,0.00021917,2]
[328595297,1717587050019,-500.0,0.00021917,2]
[328595298,1717587050028,-500.0,0.00021917,2]
[328595299,1717587050038,-582.33,0.00021917,2]
[328595300,1717587050047,-500.0,0.00021917,2]
[328595301,1717587050057,-500.0,0.00021917,2]
[328595302,1717587050067,-500.0,0.00021917,2]
[328595303,1717587050076,-500.0,0.00021917,2]
[328595304,1717587050085,-500.0,0.00021917,2]
[328595305,1717587050094,-312.80389994,0.00021917,2]
[328595306,1717587050103,-500.0,0.00021917,2]
[328595307,1717587050112,-350.57816301,0.00021917,2]
[328595308,1717587050121,-521.21437627,0.00021917,2]
[328595309,1717587050130,-500.0,0.00021917,2]
[328595310,1717587050140,-500.0,0.00021917,2]
[328595311,1717587050149,-500.0,0.00021917,2]
[328595312,1717587050159,-599.47,0.00021917,2]
[328595313,1717587050170,-718.54,0.00021917,2]
[328595314,1717587050180,-500.0,0.00021917,2]
[328595315,1717587050189,-500.0,0.00021917,2]
[328595316,1717587050198,-1235.31,0.00021917,2]
[328595317,1717587050208,-500.0,0.00021917,2]
[328595318,1717587050217,-500.0,0.00021917,2]
[328595319,1717587050227,-500.0,0.00021917,2]
[328595320,1717587050236,-500.0,0.00021917,2]
[328595321,1717587050245,-151.0,0.00021917,2]
[328595322,1717587050254,-500.0,0.00021917,2]
[328595323,1717587050263,-500.0,0.00021917,2]
[328595324,1717587050272,-151.0,0.00021917,2]
[328595325,1717587050281,-507.49852543,0.00021917,2]
[328595326,1717587050292,-500.0,0.00021917,2]
[328595327,1717587050301,-500.0,0.00021917,2]
[328595328,1717587050310,-500.0,0.00021917,2]
[328595329,1717587050319,-500.0,0.00021917,2]
[328595330,1717587050327,-507.003997,0.00021917,2]
[328595331,1717587050337,-500.0,0.00021917,2]
[328595332,1717587050346,-151.0,0.00021917,2]
[328595333,1717587050355,-500.26844829,0.00021917,2]
[328595334,1717587050364,-1639.63,0.00021917,2]
[328595335,1717587050373,-500.0,0.00021917,2]
[328595336,1717587050382,-500.0,0.00021917,2]
[328595337,1717587050391,-1016.93,0.00021917,2]
[328595338,1717587050399,-500.0,0.00021917,2]
[328595339,1717587050408,-500.0,0.00021917,2]
[328595340,1717587050418,-502.59911156,0.00021917,2]
[328595341,1717587050427,-500.0,0.00021917,2]
[328595342,1717587050436,-499.62024715,0.00021917,2]
[328595343,1717587050445,-500.0,0.00021917,2]
[328595344,1717587050454,-500.0,0.00021917,2]
[328595345,1717587050463,-500.0,0.00021917,2]
[328595346,1717587050472,-500.0,0.00021917,2]
[328595347,1717587050481,-500.0,0.00021917,2]
[328595348,1717587050491,-500.0,0.00021917,2]
[328595349,1717587050500,-243.31497521,0.00021917,2]
[328595350,1717587050509,-500.0,0.00021917,2]
[328595351,1717587050518,-500.0,0.00021917,2]
[328595352,1717587050528,-500.0,0.00021917,2]
[328595353,1717587050537,-3600.31,0.00021917,2]
[328595354,1717587050546,-2108.19,0.00021917,2]
[328595355,1717587050555,-500.0,0.00021917,2]
[328595356,1717587050564,-1861.05,0.00021917,2]
[328595357,1717587050574,-500.0,0.00021917,2]
[328595358,1717587050584,-390.37867143,0.00021917,2]
[328595359,1717587050593,-500.0,0.00021917,2]
[328595360,1717587050602,-500.0,0.00021917,2]
[328595361,1717587050610,-500.0,0.00021917,2]
[328595362,1717587050620,-770.78,0.00021917,2]
[328595363,1717587050630,-500.0,0.00021917,2]
[328595364,1717587050639,-1045.29,0.00021917,2]
[328595365,1717587050648,-500.0,0.00021917,2]
[328595366,1717587050657,-584.93,0.00021917,2]
[328595367,1717587050666,-550.42,0.00021917,2]
[328595368,1717587050676,-795.42,0.00021917,2]
[328595369,1717587050685,-500.0,0.00021917,2]
[328595370,1717587050694,-500.0,0.00021917,2]
[328595371,1717587050703,-500.0,0.00021917,2]
[328595372,1717587050712,-500.0,0.00021917,2]
[328595373,1717587050721,-3919.47,0.00021917,2]
[328595374,1717587050731,-644.62700583,0.00021917,2]
[328595375,1717587050740,-500.0,0.00021917,2]
[328595376,1717587050749,-500.0,0.00021917,2]
[328595377,1717587050758,-500.0,0.00021917,2]
[328595378,1717587050768,-500.0,0.00021917,2]
[328595379,1717587050777,-500.0,0.00021917,2]
[328595380,1717587050787,-1000.0,0.00021917,2]
[328595381,1717587050796,-500.0,0.00021917,2]
[328595382,1717587050805,-500.0,0.00021917,2]
[328595383,1717587050814,-628.87,0.00021917,2]
[328595384,1717587050823,-1294.04,0.00021917,2]
[328595385,1717587050832,-500.0,0.00021917,2]
[328595386,1717587050845,-634.15,0.00021917,2]
[328595387,1717587050854,-882.32,0.00021917,2]
[328595388,1717587050863,-500.0,0.00021917,2]
[328595389,1717587050872,-500.0,0.00021917,2]
[328595390,1717587050881,-771.58,0.00021917,2]
[328595391,1717587050890,-1015.48,0.00021917,2]
[328595392,1717587050899,-500.0,0.00021917,2]
[328595393,1717587050909,-500.0,0.00021917,2]
[328595394,1717587050920,-2243.13,0.00021917,2]
[328595395,1717587050929,-500.0,0.00021917,2]
[328595396,1717587050938,-500.0,0.00021917,2]
[328595397,1717587050948,-500.0,0.00021917,2]
[328595398,1717587050957,-500.0,0.00021917,2]
[328595399,1717587050966,-500.0,0.00021917,2]
[328595400,1717587050975,-500.0,0.00021917,2]
[328595401,1717587050984,-4913.71,0.00021917,2]
[328595402,1717587050993,-500.0,0.00021917,2]
[328595403,1717587051003,-500.0,0.00021917,2]
[328595404,1717587051012,-500.0,0.00021917,2]
[328595405,1717587051022,-151.0,0.00021917,2]
[328595406,1717587051032,-151.0,0.00021917,2]
[328595407,1717587051042,-500.0,0.00021917,2]
[328595408,1717587051051,-1327.49,0.00021917,2]
[328595409,1717587051061,-500.0,0.00021917,2]
[328595410,1717587051070,-500.0,0.00021917,2]
[328595411,1717587051079,-500.0,0.00021917,2]
[328595412,1717587051088,-864.71,0.00021917,2]
[328595413,1717587051098,-500.0,0.00021917,2]
[328595414,1717587051107,-503.21,0.00021917,2]
[328595415,1717587051116,-500.0,0.00021917,2]
[328595416,1717587051125,-500.0,0.00021917,2]
[328595417,1717587051135,-412.14384488,0.00021917,2]
[328595418,1717587051144,-500.0,0.00021917,2]
[328595419,1717587051153,-166.666666,0.00021918,2]
[328595420,1717587051163,-153.0,0.0002197,2]
[328595421,1717587051172,-153.0,0.0002197,2]
[328595422,1717587051181,-153.0,0.0002197,2]
[328595423,1717587051190,-177.0,0.00022,2]
[328595424,1717587051199,-624.16065565,0.000221,2]
[328595425,1717587051208,-500.0,0.0002219,2]
[328595426,1717587051218,-500.0,0.0002219,2]
[328595427,1717587051227,-430.41454143,0.0002219,2]
[328595428,1717587051237,-500.0,0.00022191,2]
[328595429,1717587051246,-696.69,0.00022191,2]
[328595430,1717587051255,-500.0,0.00022191,2]
[328595431,1717587051264,-500.0,0.00022191,2]
[328595432,1717587051274,-648.32946766,0.00022191,2]
[328595433,1717587051283,-500.0,0.00022191,2]
[328595434,1717587051293,-500.0,0.00022191,2]
[328595435,1717587051302,-233.22,0.00022191,2]
[328595436,1717587051311,-775.93,0.00022191,2]
[328595437,1717587051320,-365.26644416,0.00022191,2]
[328595438,1717587051330,-500.0,0.00022191,2]
[328595439,1717587051339,-500.0,0.00022191,2]
[328595440,1717587051348,-500.0,0.00022191,2]
[328595441,1717587051358,-500.0,0.00022191,2]
[328595442,1717587051367,-500.0,0.00022191,2]
[328595443,1717587051377,-500.0,0.00022191,2]
[328595444,1717587051386,-200.07,0.00022191,2]
[328595445,1717587051395,-500.0,0.00022191,2]
[328595446,1717587051405,-983.57,0.00022191,2]
[328595447,1717587051415,-500.0,0.00022191,2]
[328595448,1717587051425,-500.0,0.00022191,2]
[328595449,1717587051435,-500.0,0.00022191,2]
[328595450,1717587051446,-500.0,0.00022191,2]
[328595451,1717587051456,-500.0,0.00022191,2]
[328595452,1717587051467,-179.15,0.00022191,2]
[328595453,1717587051476,-500.0,0.00022191,2]